[Event "Titled Tuesday Blitz October 31 Early 2023"]
[White "Goltseva, Ekaterina"]
[Black "NLLO777"]
[WhiteFideId "24173770"]
[WhiteElo "2528"]
[BlackElo "2706"]
[Result "1-0"]
[Round "5"]
[TimeControl "180+1"]
[Date "2023.10.31"]
[WhiteClock "0:00:05"]
[BlackClock "0:00:07"]
[Board "59"]

1. d4 {[%clk 0:02:58]}  Nf6 {[%clk 0:02:59]} 2. c4 {[%clk 0:02:55]}  c5 {[%clk 0:02:59]} 3. d5 {[%clk 0:02:55]}  b5 {[%clk 0:02:58]} 4. cxb5 {[%clk 0:02:55]}  a6 {[%clk 0:02:59]} 5. bxa6 {[%clk 0:02:55]}  d6 {[%clk 0:02:58]} 6. Nc3 {[%clk 0:02:54]}  Bxa6 {[%clk 0:02:58]} 7. e4 {[%clk 0:02:54]}  Bxf1 {[%clk 0:02:58]} 8. Kxf1 {[%clk 0:02:55]}  g6 {[%clk 0:02:58]} 9. g3 {[%clk 0:02:56]}  Bg7 {[%clk 0:02:59]} 10. Kg2 {[%clk 0:02:57]}  O-O {[%clk 0:02:59]} 11. Nf3 {[%clk 0:02:55]}  Nbd7 {[%clk 0:03:00]} 12. a4 {[%clk 0:02:56]}  Qb6 {[%clk 0:02:59]} 13. Qe2 {[%clk 0:02:54]}  Rfb8 {[%clk 0:02:58]} 14. Ra3 {[%clk 0:02:51]}  Ne8 {[%clk 0:02:56]} 15. Nd2 {[%clk 0:02:48]}  Nc7 {[%clk 0:02:55]} 16. Nc4 {[%clk 0:02:46]}  Qa6 {[%clk 0:02:55]} 17. Bg5 {[%clk 0:02:45]}  Kf8 {[%clk 0:02:54]} 18. h4 {[%clk 0:02:44]}  Rb4 {[%clk 0:02:49]} 19. Nb5 {[%clk 0:02:29]}  Qb7 {[%clk 0:02:32]} 20. Nxc7 {[%clk 0:02:09]}  Qxc7 {[%clk 0:02:33]} 21. h5 {[%clk 0:01:58]}  Raxa4 {[%clk 0:02:27]} 22. Rxa4 {[%clk 0:01:52]}  Rxa4 {[%clk 0:02:28]} 23. hxg6 {[%clk 0:01:51]}  hxg6 {[%clk 0:02:23]} 24. b3 {[%clk 0:01:30]}  Rb4 {[%clk 0:02:17]} 25. Qe3 {[%clk 0:01:26]}  Nf6 {[%clk 0:01:42]} 26. Bh6 {[%clk 0:01:21]}  Ng8 {[%clk 0:01:20]} 27. Bxg7+ {[%clk 0:01:16]}  Kxg7 {[%clk 0:01:20]} 28. e5 {[%clk 0:00:59]}  Qb7 {[%clk 0:01:18]} 29. exd6 {[%clk 0:00:51]}  Qxd5+ {[%clk 0:01:17]} 30. Qf3 {[%clk 0:00:20]}  Qxf3+ {[%clk 0:01:15]} 31. Kxf3 {[%clk 0:00:21]}  exd6 {[%clk 0:01:11]} 32. Nxd6 {[%clk 0:00:21]}  Rxb3+ {[%clk 0:01:11]} 33. Kg2 {[%clk 0:00:21]}  Rc3 {[%clk 0:01:01]} 34. Rb1 {[%clk 0:00:17]}  Rc2 {[%clk 0:00:45]} 35. Rb7 {[%clk 0:00:17]}  Nh6 {[%clk 0:00:45]} 36. Kf3 {[%clk 0:00:15]}  Kf6 {[%clk 0:00:43]} 37. Ne4+ {[%clk 0:00:13]}  Ke6 {[%clk 0:00:41]} 38. Rc7 {[%clk 0:00:12]}  c4 {[%clk 0:00:35]} 39. Rc6+ {[%clk 0:00:10]}  Kd7 {[%clk 0:00:33]} 40. Rc5 {[%clk 0:00:09]}  Nf5 {[%clk 0:00:30]} 41. Ng5 {[%clk 0:00:08]}  Kd6 {[%clk 0:00:20]} 42. Rc8 {[%clk 0:00:07]}  Nd4+ {[%clk 0:00:18]} 43. Ke3 {[%clk 0:00:05]}  Nc6 {[%clk 0:00:16]} 44. Nxf7+ {[%clk 0:00:05]}  Kd7 {[%clk 0:00:15]} 45. Ra8 {[%clk 0:00:05]}  Ke6 {[%clk 0:00:12]} 46. Ng5+ {[%clk 0:00:04]}  Kd5 {[%clk 0:00:13]} 47. Re8 {[%clk 0:00:03]}  Kc5 {[%clk 0:00:11]} 48. Nf3 {[%clk 0:00:03]}  Nb4 {[%clk 0:00:10]} 49. Rc8+ {[%clk 0:00:04]}  Kb5 {[%clk 0:00:10]} 50. Nd4+ {[%clk 0:00:04]}  Ka4 {[%clk 0:00:07]} 51. Nxc2 {[%clk 0:00:05]}  Kb3 {[%clk 0:00:08]} 52. Nxb4 {[%clk 0:00:04]}  Kxb4 {[%clk 0:00:07]} 53. Kd4 {[%clk 0:00:05]} 1-0


[Site "https://www.chess.com"]

[Event "Titled Tuesday Blitz October 31 Early 2023"]
[White "Amilal Munkhdalai"]
[Black "Ronka, Erik"]
[WhiteFideId "4903250"]
[BlackFideId "505080"]
[WhiteElo "2687"]
[BlackElo "2521"]
[Result "0-1"]
[Round "5"]
[TimeControl "180+1"]
[Date "2023.10.31"]
[WhiteClock "0:00:39"]
[BlackClock "0:00:09"]
[Board "61"]

1. e4 {[%clk 0:03:00]}  c5 {[%clk 0:02:40]} 2. Nf3 {[%clk 0:03:00]}  e6 {[%clk 0:02:41]} 3. d4 {[%clk 0:03:00]}  cxd4 {[%clk 0:02:42]} 4. Nxd4 {[%clk 0:03:01]}  Nf6 {[%clk 0:02:42]} 5. Nc3 {[%clk 0:03:01]}  d6 {[%clk 0:02:43]} 6. g4 {[%clk 0:03:01]}  h6 {[%clk 0:02:43]} 7. h4 {[%clk 0:03:00]}  Nc6 {[%clk 0:02:44]} 8. Rg1 {[%clk 0:02:54]}  d5 {[%clk 0:02:44]} 9. exd5 {[%clk 0:02:38]}  Nxd5 {[%clk 0:02:45]} 10. Nxd5 {[%clk 0:02:38]}  exd5 {[%clk 0:02:46]} 11. Be3 {[%clk 0:02:37]}  Qxh4 {[%clk 0:02:43]} 12. Qd2 {[%clk 0:02:26]}  Bxg4 {[%clk 0:02:36]} 13. Nxc6 {[%clk 0:02:11]}  bxc6 {[%clk 0:02:35]} 14. Ba6 {[%clk 0:02:11]}  Rd8 {[%clk 0:01:47]} 15. Qd4 {[%clk 0:02:04]}  h5 {[%clk 0:01:33]} 16. Bb7 {[%clk 0:01:57]}  Rd6 {[%clk 0:01:25]} 17. Bf4 {[%clk 0:01:50]}  Re6+ {[%clk 0:01:24]} 18. Kd2 {[%clk 0:01:48]}  Qf6 {[%clk 0:00:53]} 19. Qxf6 {[%clk 0:01:41]}  Rxf6 {[%clk 0:00:47]} 20. Rae1+ {[%clk 0:01:36]}  Kd7 {[%clk 0:00:48]} 21. Be3 {[%clk 0:01:16]}  Bd6 {[%clk 0:00:33]} 22. Ba6 {[%clk 0:01:11]}  c5 {[%clk 0:00:31]} 23. c3 {[%clk 0:01:10]}  Kc6 {[%clk 0:00:27]} 24. Be2 {[%clk 0:01:10]}  Bxe2 {[%clk 0:00:25]} 25. Rxe2 {[%clk 0:01:10]}  g6 {[%clk 0:00:25]} 26. b4 {[%clk 0:01:09]}  Re8 {[%clk 0:00:23]} 27. a4 {[%clk 0:01:00]}  cxb4 {[%clk 0:00:20]} 28. cxb4 {[%clk 0:01:00]}  Bxb4+ {[%clk 0:00:20]} 29. Kd3 {[%clk 0:01:00]}  Rfe6 {[%clk 0:00:17]} 30. Rb1 {[%clk 0:00:58]}  a5 {[%clk 0:00:17]} 31. Rc2+ {[%clk 0:00:58]}  Kd7 {[%clk 0:00:17]} 32. Rbc1 {[%clk 0:00:58]}  Ke7 {[%clk 0:00:09]} 33. Bc5+ {[%clk 0:00:48]}  Kf6 {[%clk 0:00:09]} 34. Bxb4 {[%clk 0:00:48]}  axb4 {[%clk 0:00:10]} 35. Rb2 {[%clk 0:00:48]}  Re4 {[%clk 0:00:10]} 36. a5 {[%clk 0:00:48]}  Ra8 {[%clk 0:00:09]} 37. Ra1 {[%clk 0:00:48]}  h4 {[%clk 0:00:08]} 38. a6 {[%clk 0:00:48]}  h3 {[%clk 0:00:08]} 39. a7 {[%clk 0:00:46]}  Re7 {[%clk 0:00:06]} 40. Rxb4 {[%clk 0:00:43]}  Rexa7 {[%clk 0:00:06]} 41. Rh1 {[%clk 0:00:42]}  Ra3+ {[%clk 0:00:06]} 42. Ke2 {[%clk 0:00:43]}  Re8+ {[%clk 0:00:06]} 43. Kd2 {[%clk 0:00:42]}  Ra2+ {[%clk 0:00:06]} 44. Kc3 {[%clk 0:00:42]}  Rc8+ {[%clk 0:00:05]} 45. Kd3 {[%clk 0:00:41]}  Rxf2 {[%clk 0:00:03]} 46. Rxh3 {[%clk 0:00:42]}  Rf5 {[%clk 0:00:04]} 47. Rh7 {[%clk 0:00:40]}  Re8 {[%clk 0:00:04]} 48. Rb7 {[%clk 0:00:40]}  Kg5 {[%clk 0:00:03]} 49. Rbxf7 {[%clk 0:00:39]}  Rxf7 {[%clk 0:00:04]} 50. Rxf7 {[%clk 0:00:40]}  Re5 {[%clk 0:00:05]} 51. Kd4 {[%clk 0:00:40]}  Rf5 {[%clk 0:00:06]} 52. Re7 {[%clk 0:00:40]}  Kf4 {[%clk 0:00:06]} 53. Rg7 {[%clk 0:00:40]}  g5 {[%clk 0:00:06]} 54. Rg8 {[%clk 0:00:40]}  g4 {[%clk 0:00:07]} 55. Re8 {[%clk 0:00:40]}  Kf3 {[%clk 0:00:07]} 56. Re3+ {[%clk 0:00:40]}  Kf2 {[%clk 0:00:08]} 57. Re8 {[%clk 0:00:40]}  g3 {[%clk 0:00:08]} 58. Rg8 {[%clk 0:00:39]}  g2 {[%clk 0:00:09]} 0-1


[Site "https://www.chess.com"]

[Event "Titled Tuesday Blitz October 31 Early 2023"]
[White "alfianasybullina"]
[Black "Janaszak, Dawid"]
[BlackFideId "1119206"]
[WhiteElo "2303"]
[BlackElo "2664"]
[Result "0-1"]
[Round "5"]
[TimeControl "180+1"]
[Date "2023.10.31"]
[WhiteClock "0:00:10"]
[BlackClock "0:01:45"]
[Board "65"]

1. d4 {[%clk 0:03:00]}  Nf6 {[%clk 0:02:58]} 2. Nf3 {[%clk 0:03:00]}  g6 {[%clk 0:02:58]} 3. Bf4 {[%clk 0:02:59]}  d6 {[%clk 0:02:57]} 4. Nc3 {[%clk 0:02:59]}  c6 {[%clk 0:02:44]} 5. e4 {[%clk 0:02:57]}  b5 {[%clk 0:02:44]} 6. a3 {[%clk 0:02:56]}  Bg7 {[%clk 0:02:33]} 7. h3 {[%clk 0:02:56]}  O-O {[%clk 0:02:32]} 8. Be2 {[%clk 0:02:56]}  Nbd7 {[%clk 0:02:27]} 9. O-O {[%clk 0:02:54]}  Bb7 {[%clk 0:02:20]} 10. Re1 {[%clk 0:02:49]}  a5 {[%clk 0:02:01]} 11. e5 {[%clk 0:02:37]}  Ne8 {[%clk 0:02:00]} 12. exd6 {[%clk 0:02:26]}  Nxd6 {[%clk 0:02:01]} 13. Bd3 {[%clk 0:01:54]}  b4 {[%clk 0:01:58]} 14. axb4 {[%clk 0:01:50]}  axb4 {[%clk 0:01:59]} 15. Rxa8 {[%clk 0:01:50]}  Bxa8 {[%clk 0:01:59]} 16. Ne4 {[%clk 0:01:49]}  Nb6 {[%clk 0:01:55]} 17. b3 {[%clk 0:01:42]}  Nd5 {[%clk 0:01:54]} 18. Bd2 {[%clk 0:01:18]}  Nb5 {[%clk 0:01:50]} 19. Bxb5 {[%clk 0:01:14]}  cxb5 {[%clk 0:01:50]} 20. Nc5 {[%clk 0:01:04]}  Nc3 {[%clk 0:01:46]} 21. Bxc3 {[%clk 0:01:01]}  bxc3 {[%clk 0:01:47]} 22. Ne5 {[%clk 0:00:40]}  Qd5 {[%clk 0:01:46]} 23. f3 {[%clk 0:00:30]}  Rd8 {[%clk 0:01:46]} 24. b4 {[%clk 0:00:16]}  Bxe5 {[%clk 0:01:45]} 25. Rxe5 {[%clk 0:00:10]}  Qxe5 {[%clk 0:01:45]} 0-1


[Site "https://www.chess.com"]

[Event "Titled Tuesday Blitz October 31 Early 2023"]
[White "Topalov, Aleksandar"]
[Black "Prestia, Paris"]
[WhiteFideId "925659"]
[BlackFideId "30925959"]
[WhiteElo "2260"]
[BlackElo "2610"]
[Result "0-1"]
[Round "5"]
[TimeControl "180+1"]
[Date "2023.10.31"]
[WhiteClock "0:00:53"]
[BlackClock "0:00:12"]
[Board "67"]

1. b3 {[%clk 0:03:00]}  b6 {[%clk 0:00:35]} 2. Bb2 {[%clk 0:02:58]}  Bb7 {[%clk 0:00:36]} 3. Nf3 {[%clk 0:02:57]}  Nf6 {[%clk 0:00:36]} 4. g3 {[%clk 0:02:57]}  e6 {[%clk 0:00:36]} 5. Bg2 {[%clk 0:02:57]}  Be7 {[%clk 0:00:37]} 6. O-O {[%clk 0:02:57]}  O-O {[%clk 0:00:38]} 7. d3 {[%clk 0:02:57]}  c5 {[%clk 0:00:39]} 8. Nbd2 {[%clk 0:02:56]}  d5 {[%clk 0:00:39]} 9. e3 {[%clk 0:02:55]}  Nc6 {[%clk 0:00:40]} 10. a3 {[%clk 0:02:54]}  a5 {[%clk 0:00:39]} 11. c4 {[%clk 0:02:52]}  a4 {[%clk 0:00:37]} 12. cxd5 {[%clk 0:02:48]}  exd5 {[%clk 0:00:36]} 13. bxa4 {[%clk 0:02:39]}  Re8 {[%clk 0:00:36]} 14. Qc2 {[%clk 0:02:37]}  Bf8 {[%clk 0:00:35]} 15. Rfb1 {[%clk 0:02:28]}  Na5 {[%clk 0:00:29]} 16. Bc3 {[%clk 0:02:15]}  Qc7 {[%clk 0:00:29]} 17. Bxf6 {[%clk 0:02:01]}  gxf6 {[%clk 0:00:30]} 18. Nh4 {[%clk 0:01:56]}  Bc6 {[%clk 0:00:29]} 19. Nf5 {[%clk 0:01:53]}  Re6 {[%clk 0:00:27]} 20. Nb3 {[%clk 0:01:39]}  Nxb3 {[%clk 0:00:26]} 21. Qxb3 {[%clk 0:01:39]}  Bb7 {[%clk 0:00:19]} 22. Bxd5 {[%clk 0:01:28]}  Bxd5 {[%clk 0:00:19]} 23. Qxd5 {[%clk 0:01:28]}  Rxa4 {[%clk 0:00:20]} 24. Rb3 {[%clk 0:01:16]}  Re5 {[%clk 0:00:18]} 25. Qf3 {[%clk 0:01:16]}  Qa7 {[%clk 0:00:15]} 26. Rab1 {[%clk 0:01:12]}  Re6 {[%clk 0:00:12]} 27. Qg4+ {[%clk 0:00:53]}  Rxg4 {[%clk 0:00:12]} 0-1


[Site "https://www.chess.com"]

[Event "Titled Tuesday Blitz October 31 Early 2023"]
[White "Baskakov, Egor"]
[Black "Martins, Bruno Andre Leite"]
[WhiteFideId "24197866"]
[BlackFideId "1942255"]
[WhiteElo "2917"]
[BlackElo "2481"]
[Result "1-0"]
[Round "5"]
[TimeControl "180+1"]
[Date "2023.10.31"]
[WhiteClock "0:01:19"]
[BlackClock "0:00:35"]
[Board "68"]

1. e4 {[%clk 0:03:00]}  Nc6 {[%clk 0:02:48]} 2. Nc3 {[%clk 0:02:59]}  e5 {[%clk 0:02:40]} 3. g3 {[%clk 0:03:00]}  Bc5 {[%clk 0:02:33]} 4. Bg2 {[%clk 0:03:00]}  d6 {[%clk 0:02:22]} 5. Nge2 {[%clk 0:03:00]}  Nf6 {[%clk 0:02:18]} 6. d3 {[%clk 0:03:00]}  h5 {[%clk 0:02:13]} 7. h3 {[%clk 0:03:00]}  h4 {[%clk 0:01:56]} 8. g4 {[%clk 0:02:52]}  Bxg4 {[%clk 0:01:56]} 9. hxg4 {[%clk 0:02:53]}  Nxg4 {[%clk 0:01:56]} 10. d4 {[%clk 0:02:50]}  exd4 {[%clk 0:01:53]} 11. Na4 {[%clk 0:02:44]}  Qf6 {[%clk 0:01:44]} 12. Nf4 {[%clk 0:02:37]}  Bb4+ {[%clk 0:01:39]} 13. c3 {[%clk 0:02:33]}  dxc3 {[%clk 0:01:36]} 14. bxc3 {[%clk 0:02:34]}  Ba5 {[%clk 0:01:29]} 15. O-O {[%clk 0:02:02]}  Nce5 {[%clk 0:01:15]} 16. Rb1 {[%clk 0:01:51]}  h3 {[%clk 0:01:02]} 17. Nxh3 {[%clk 0:01:29]}  Rxh3 {[%clk 0:00:49]} 18. Bxh3 {[%clk 0:01:29]}  Qh4 {[%clk 0:00:49]} 19. Kg2 {[%clk 0:01:29]}  O-O-O {[%clk 0:00:44]} 20. Qe2 {[%clk 0:01:19]}  Rh8 {[%clk 0:00:35]} 21. Rh1 {[%clk 0:01:19]} 1-0


[Site "https://www.chess.com"]

[Event "Titled Tuesday Blitz October 31 Early 2023"]
[White "Mekhitarian, Krikor Sevag"]
[Black "Kopczynski, Michal"]
[WhiteFideId "2107660"]
[BlackFideId "1124200"]
[WhiteElo "2759"]
[BlackElo "2480"]
[Result "1-0"]
[Round "5"]
[TimeControl "180+1"]
[Date "2023.10.31"]
[WhiteClock "0:00:09"]
[BlackClock "0:00:00"]
[Board "69"]

1. Nf3 {[%clk 0:02:43]}  d6 {[%clk 0:02:59]} 2. d4 {[%clk 0:02:42]}  g6 {[%clk 0:02:59]} 3. c4 {[%clk 0:02:41]}  Bg7 {[%clk 0:03:00]} 4. Nc3 {[%clk 0:02:41]}  Nf6 {[%clk 0:03:00]} 5. e4 {[%clk 0:02:41]}  O-O {[%clk 0:03:01]} 6. h3 {[%clk 0:02:41]}  c5 {[%clk 0:03:00]} 7. Be3 {[%clk 0:02:40]}  Na6 {[%clk 0:03:01]} 8. Be2 {[%clk 0:02:29]}  Rb8 {[%clk 0:02:59]} 9. O-O {[%clk 0:02:28]}  cxd4 {[%clk 0:02:52]} 10. Bxd4 {[%clk 0:02:13]}  Nc5 {[%clk 0:02:52]} 11. e5 {[%clk 0:02:14]}  Nfd7 {[%clk 0:02:49]} 12. exd6 {[%clk 0:02:13]}  exd6 {[%clk 0:02:48]} 13. Bxg7 {[%clk 0:02:13]}  Kxg7 {[%clk 0:02:49]} 14. Qxd6 {[%clk 0:02:13]}  Qf6 {[%clk 0:02:46]} 15. Rad1 {[%clk 0:02:01]}  Ne6 {[%clk 0:02:38]} 16. Rfe1 {[%clk 0:01:56]}  Ra8 {[%clk 0:02:33]} 17. Bf1 {[%clk 0:01:49]}  Rd8 {[%clk 0:02:24]} 18. Qg3 {[%clk 0:01:37]}  b6 {[%clk 0:02:06]} 19. Rd2 {[%clk 0:01:29]}  Bb7 {[%clk 0:02:04]} 20. Nd5 {[%clk 0:01:30]}  Qf5 {[%clk 0:01:53]} 21. Red1 {[%clk 0:01:21]}  Ndc5 {[%clk 0:01:46]} 22. Ne3 {[%clk 0:01:21]}  Qh5 {[%clk 0:01:40]} 23. Rxd8 {[%clk 0:01:12]}  Rxd8 {[%clk 0:01:41]} 24. Rxd8 {[%clk 0:01:11]}  Nxd8 {[%clk 0:01:42]} 25. Be2 {[%clk 0:01:11]}  Nc6 {[%clk 0:00:43]} 26. Nd4 {[%clk 0:00:50]}  Qe5 {[%clk 0:00:41]} 27. Qxe5+ {[%clk 0:00:49]}  Nxe5 {[%clk 0:00:42]} 28. b3 {[%clk 0:00:42]}  a5 {[%clk 0:00:39]} 29. Nb5 {[%clk 0:00:35]}  a4 {[%clk 0:00:37]} 30. b4 {[%clk 0:00:34]}  Ncd3 {[%clk 0:00:34]} 31. Bxd3 {[%clk 0:00:34]}  Nxd3 {[%clk 0:00:35]} 32. a3 {[%clk 0:00:35]}  Kf6 {[%clk 0:00:26]} 33. Nc3 {[%clk 0:00:35]}  Ke5 {[%clk 0:00:20]} 34. Nc2 {[%clk 0:00:30]}  Nb2 {[%clk 0:00:17]} 35. c5 {[%clk 0:00:22]}  bxc5 {[%clk 0:00:18]} 36. bxc5 {[%clk 0:00:23]}  Bc6 {[%clk 0:00:18]} 37. Nb4 {[%clk 0:00:23]}  Kd4 {[%clk 0:00:15]} 38. Nxc6+ {[%clk 0:00:18]}  Kxc3 {[%clk 0:00:16]} 39. Ne5 {[%clk 0:00:16]}  Kb3 {[%clk 0:00:04]} 40. c6 {[%clk 0:00:17]}  Kxa3 {[%clk 0:00:04]} 41. c7 {[%clk 0:00:17]}  Kb3 {[%clk 0:00:04]} 42. c8=Q {[%clk 0:00:17]}  a3 {[%clk 0:00:05]} 43. Qb7+ {[%clk 0:00:16]}  Ka2 {[%clk 0:00:06]} 44. Qxf7+ {[%clk 0:00:16]}  Kb1 {[%clk 0:00:06]} 45. Qxh7 {[%clk 0:00:14]}  a2 {[%clk 0:00:05]} 46. Qxg6+ {[%clk 0:00:15]}  Kc1 {[%clk 0:00:05]} 47. Nd3+ {[%clk 0:00:14]}  Kd2 {[%clk 0:00:00]} 48. Qa6 {[%clk 0:00:09]} 1-0


[Site "https://www.chess.com"]

[Event "Titled Tuesday Blitz October 31 Early 2023"]
[White "Gubajdullin, Alexei"]
[Black "Rangel, Daniel"]
[WhiteFideId "4141202"]
[BlackFideId "2124475"]
[WhiteElo "2712"]
[BlackElo "2470"]
[Result "1-0"]
[Round "5"]
[TimeControl "180+1"]
[Date "2023.10.31"]
[WhiteClock "0:00:47"]
[BlackClock "0:01:21"]
[Board "72"]

1. d4 {[%clk 0:01:27]}  Nf6 {[%clk 0:02:58]} 2. Nf3 {[%clk 0:01:27]}  g6 {[%clk 0:02:57]} 3. Bf4 {[%clk 0:01:28]}  Bg7 {[%clk 0:02:58]} 4. e3 {[%clk 0:01:28]}  O-O {[%clk 0:02:59]} 5. Be2 {[%clk 0:01:27]}  d6 {[%clk 0:03:00]} 6. O-O {[%clk 0:01:27]}  b6 {[%clk 0:03:00]} 7. h3 {[%clk 0:01:28]}  Bb7 {[%clk 0:02:59]} 8. a4 {[%clk 0:01:28]}  a6 {[%clk 0:02:59]} 9. a5 {[%clk 0:01:28]}  b5 {[%clk 0:02:58]} 10. c4 {[%clk 0:01:28]}  b4 {[%clk 0:02:46]} 11. Nbd2 {[%clk 0:01:27]}  c5 {[%clk 0:02:45]} 12. Nb3 {[%clk 0:01:27]}  Nfd7 {[%clk 0:02:43]} 13. Nfd2 {[%clk 0:01:26]}  Nc6 {[%clk 0:02:42]} 14. Bf3 {[%clk 0:01:25]}  e5 {[%clk 0:02:32]} 15. Bh2 {[%clk 0:01:22]}  Qc8 {[%clk 0:01:59]} 16. Ne4 {[%clk 0:01:21]}  Qc7 {[%clk 0:01:47]} 17. dxc5 {[%clk 0:01:18]}  dxc5 {[%clk 0:01:45]} 18. Qd6 {[%clk 0:01:13]}  Qxd6 {[%clk 0:01:38]} 19. Nxd6 {[%clk 0:01:13]}  Bc8 {[%clk 0:01:38]} 20. Bxc6 {[%clk 0:01:12]}  Ra7 {[%clk 0:01:35]} 21. Rfd1 {[%clk 0:01:00]}  Nf6 {[%clk 0:01:33]} 22. Bxe5 {[%clk 0:00:59]}  Be6 {[%clk 0:01:28]} 23. Nxc5 {[%clk 0:00:58]}  Nd7 {[%clk 0:01:20]} 24. Bxg7 {[%clk 0:00:49]}  Kxg7 {[%clk 0:01:17]} 25. Bxd7 {[%clk 0:00:48]}  Bxd7 {[%clk 0:01:18]} 26. Nxd7 {[%clk 0:00:48]}  Rxd7 {[%clk 0:01:19]} 27. Nf5+ {[%clk 0:00:48]}  gxf5 {[%clk 0:01:18]} 28. Rxd7 {[%clk 0:00:48]}  Rc8 {[%clk 0:01:19]} 29. Rc1 {[%clk 0:00:47]}  Rxc4 {[%clk 0:01:20]} 30. Rxc4 {[%clk 0:00:47]}  b3 {[%clk 0:01:21]} 31. Rcc7 {[%clk 0:00:47]} 1-0


[Site "https://www.chess.com"]

[Event "Titled Tuesday Blitz October 31 Early 2023"]
[White "Jain Kashish Manoj"]
[Black "MMAHDI2013"]
[WhiteFideId "35081098"]
[WhiteElo "2626"]
[BlackElo "2451"]
[Result "1-0"]
[Round "5"]
[TimeControl "180+1"]
[Date "2023.10.31"]
[WhiteClock "0:01:20"]
[BlackClock "0:00:19"]
[Board "79"]

1. e4 {[%clk 0:03:00]}  c6 {[%clk 0:02:53]} 2. d4 {[%clk 0:03:00]}  d5 {[%clk 0:02:53]} 3. e5 {[%clk 0:03:01]}  Bf5 {[%clk 0:02:51]} 4. Nf3 {[%clk 0:03:01]}  e6 {[%clk 0:02:51]} 5. Be2 {[%clk 0:03:02]}  Nd7 {[%clk 0:02:51]} 6. O-O {[%clk 0:03:02]}  a5 {[%clk 0:02:52]} 7. a4 {[%clk 0:03:02]}  f6 {[%clk 0:02:50]} 8. Nbd2 {[%clk 0:03:03]}  Nh6 {[%clk 0:02:34]} 9. Re1 {[%clk 0:02:48]}  fxe5 {[%clk 0:02:24]} 10. dxe5 {[%clk 0:02:49]}  Nf7 {[%clk 0:02:23]} 11. Nd4 {[%clk 0:02:32]}  Nfxe5 {[%clk 0:02:05]} 12. Nxf5 {[%clk 0:02:32]}  exf5 {[%clk 0:02:05]} 13. Bh5+ {[%clk 0:02:06]}  g6 {[%clk 0:02:01]} 14. Nf3 {[%clk 0:01:59]}  Bg7 {[%clk 0:01:42]} 15. Nxe5 {[%clk 0:01:58]}  Nxe5 {[%clk 0:01:43]} 16. Bf4 {[%clk 0:01:59]}  O-O {[%clk 0:01:27]} 17. Bxe5 {[%clk 0:01:59]}  Bxe5 {[%clk 0:01:14]} 18. Rxe5 {[%clk 0:01:59]}  Qf6 {[%clk 0:00:57]} 19. Qe2 {[%clk 0:01:40]}  gxh5 {[%clk 0:00:52]} 20. Re1 {[%clk 0:01:41]}  Rf7 {[%clk 0:00:30]} 21. Qxh5 {[%clk 0:01:38]}  Qg6 {[%clk 0:00:30]} 22. Qh3 {[%clk 0:01:24]}  Qg4 {[%clk 0:00:26]} 23. Qh6 {[%clk 0:01:22]}  Qg6 {[%clk 0:00:19]} 24. Re8+ {[%clk 0:01:20]} 1-0


[Site "https://www.chess.com"]

[Event "Titled Tuesday Blitz October 31 Early 2023"]
[White "kushbhagat2009"]
[Black "Rios Escobar, Adan"]
[BlackFideId "3403645"]
[WhiteElo "2623"]
[BlackElo "2447"]
[Result "1-0"]
[Round "5"]
[TimeControl "180+1"]
[Date "2023.10.31"]
[WhiteClock "0:01:08"]
[BlackClock "0:00:07"]
[Board "81"]

1. d4 {[%clk 0:03:00]}  Nf6 {[%clk 0:02:59]} 2. c4 {[%clk 0:03:00]}  g6 {[%clk 0:03:00]} 3. Nc3 {[%clk 0:03:00]}  Bg7 {[%clk 0:03:00]} 4. e4 {[%clk 0:02:59]}  d6 {[%clk 0:03:00]} 5. Be2 {[%clk 0:02:59]}  O-O {[%clk 0:02:58]} 6. Be3 {[%clk 0:02:59]}  Nc6 {[%clk 0:02:57]} 7. d5 {[%clk 0:02:58]}  Ne5 {[%clk 0:02:57]} 8. f4 {[%clk 0:02:58]}  Neg4 {[%clk 0:02:57]} 9. Bd2 {[%clk 0:02:59]}  Nh6 {[%clk 0:02:58]} 10. Nf3 {[%clk 0:02:59]}  e6 {[%clk 0:02:47]} 11. O-O {[%clk 0:02:58]}  exd5 {[%clk 0:02:45]} 12. cxd5 {[%clk 0:02:57]}  Re8 {[%clk 0:02:45]} 13. Qc2 {[%clk 0:02:56]}  c6 {[%clk 0:02:22]} 14. dxc6 {[%clk 0:02:51]}  bxc6 {[%clk 0:02:23]} 15. Kh1 {[%clk 0:02:46]}  Qb6 {[%clk 0:02:18]} 16. Na4 {[%clk 0:02:33]}  Qc7 {[%clk 0:02:12]} 17. e5 {[%clk 0:02:33]}  Bf5 {[%clk 0:02:05]} 18. Bd3 {[%clk 0:02:19]}  dxe5 {[%clk 0:02:04]} 19. Nxe5 {[%clk 0:02:17]}  Rxe5 {[%clk 0:01:51]} 20. fxe5 {[%clk 0:02:15]}  Nfg4 {[%clk 0:01:49]} 21. Bxf5 {[%clk 0:02:11]}  gxf5 {[%clk 0:01:45]} 22. h3 {[%clk 0:02:03]}  Nxe5 {[%clk 0:01:08]} 23. Bxh6 {[%clk 0:02:01]}  Bxh6 {[%clk 0:01:07]} 24. Qxf5 {[%clk 0:02:02]}  Ng6 {[%clk 0:00:59]} 25. Nc5 {[%clk 0:02:00]}  Re8 {[%clk 0:00:56]} 26. Nd7 {[%clk 0:01:41]}  Re7 {[%clk 0:00:34]} 27. Nf6+ {[%clk 0:01:40]}  Kg7 {[%clk 0:00:34]} 28. Rae1 {[%clk 0:01:35]}  Nf4 {[%clk 0:00:16]} 29. Qxh7+ {[%clk 0:01:07]}  Kxf6 {[%clk 0:00:09]} 30. Qxh6+ {[%clk 0:01:07]}  Kf5 {[%clk 0:00:07]} 31. g4# {[%clk 0:01:08]} 1-0


[Site "https://www.chess.com"]